fUSD/lending_fUSD_20250807
["ID","MTS","AMOUNT","RATE_DAILY","PERIOD"]
[377811954,1754562674368,-400.0,0.00020266,2]
[377811955,1754562674377,-400.0,0.00020266,2]
[377811956,1754562674386,-400.0,0.00020266,2]
[377811957,1754562674395,-400.0,0.00020266,2]
[377811958,1754562674404,-400.0,0.00020266,2]
[377811959,1754562674414,-400.0,0.00020266,2]
[377811960,1754562674423,-995.49,0.00020266,2]
[377811961,1754562674437,-1164.63,0.00020266,2]
[377811962,1754562674446,-404.62726244,0.00020266,2]
[377811963,1754562674455,-400.0,0.00020266,2]
[377811964,1754562674465,-400.0,0.00020266,2]
[377811965,1754562674475,-1848.21,0.00020266,2]
[377811966,1754562674484,-1388.29,0.00020266,2]
[377811967,1754562674493,-400.0,0.00020266,2]
[377811968,1754562674502,-594.16,0.00020266,2]
[377811969,1754562674514,-400.0,0.00020266,2]
[377811970,1754562674523,-1112.59,0.00020266,2]
[377811971,1754562674533,-400.0,0.00020266,2]
[377811972,1754562674542,-1038.71,0.00020266,2]
[377811973,1754562674552,-400.0,0.00020266,2]
[377811974,1754562674561,-400.0,0.00020266,2]
[377811975,1754562674570,-400.0,0.00020266,2]
[377811976,1754562674579,-1424.41,0.00020266,2]
[377811977,1754562674589,-400.0,0.00020266,2]
[377811978,1754562674599,-1878.36,0.00020266,2]
[377811979,1754562674609,-400.0,0.00020266,2]
[377811980,1754562674619,-3107.99,0.00020266,2]
[377811981,1754562674628,-400.0,0.00020266,2]
[377811982,1754562674638,-400.0,0.00020266,2]
[377811983,1754562674648,-400.0,0.00020266,2]
[377811984,1754562674657,-1338.1,0.00020266,2]
[377811985,1754562674667,-2728.69,0.00020266,2]
[377811986,1754562674677,-275.47870191,0.00020266,2]
[377811987,1754562674686,-2565.97,0.00020266,2]
[377811988,1754562674695,-540.92,0.00020266,2]
[377811989,1754562674706,-153.520008,0.00020266,2]
[377811990,1754562674715,-400.78638405,0.00020266,2]
[377811991,1754562674725,-400.0,0.00020266,2]
[377811992,1754562674734,-151.0,0.00020266,2]
[377811993,1754562674744,-400.0,0.00020266,2]
[377811994,1754562674754,-2959.71,0.00020266,2]
[377811995,1754562674765,-400.0,0.00020266,2]
[377811996,1754562674774,-809.83,0.00020266,2]
[377811997,1754562674784,-302.24743641,0.00020266,2]
[377811998,1754562674795,-400.0,0.00020266,2]
[377811999,1754562674804,-560.1,0.00020266,2]
[377812000,1754562674814,-1936.4,0.00020266,2]
[377812001,1754562674824,-400.0,0.00020266,2]
[377812002,1754562674833,-1116.8,0.00020266,2]
[377812003,1754562674843,-400.0,0.00020266,2]
[377812004,1754562674853,-835.18,0.00020266,2]
[377812005,1754562674862,-408.56506732,0.00020266,2]
[377812006,1754562674872,-400.0,0.00020266,2]
[377812007,1754562674881,-453.79,0.00020266,2]
[377812008,1754562674890,-2764.84,0.00020266,2]
[377812009,1754562674899,-400.0,0.00020266,2]
[377812010,1754562674909,-404.63042321,0.00020266,2]
[377812011,1754562674918,-472.64,0.00020266,2]
[377812012,1754562674928,-400.0,0.00020266,2]
[377812013,1754562674939,-1105.99,0.00020266,2]
[377812014,1754562674949,-403.55041539,0.00020266,2]
[377812015,1754562674959,-817.76,0.00020266,2]
[377812016,1754562674968,-981.23,0.00020266,2]
[377812017,1754562674977,-170.347147,0.00020266,2]
[377812018,1754562674987,-836.62,0.00020266,2]
[377812019,1754562674996,-228.92196551,0.00020266,2]
[377812020,1754562675014,-171.07803449,0.00020266,2]
[377812021,1754562675023,-495.84,0.00020266,2]
[377812022,1754562675032,-95.27196269,0.00020266,2]
[377812023,1754562677510,177.15,0.00015333,2]
[377812027,1754562753578,240.23,0.00013699,2]
[377812030,1754562830749,1000.0,0.0003013,120]
[377812031,1754562848354,504.85,0.00030137,120]
[377812037,1754562941867,707.62,0.00015068,2]
[377812038,1754562942273,707.62,0.00016712,2]
[377812067,1754563049131,177.0,0.00018,2]
[377812072,1754563083508,177.0,0.000301,120]
[377812077,1754563114805,177.23,0.000301,120]
[377812134,1754563433866,666.0,0.00018397,3]
[377812135,1754563437117,203.0,0.0001794,2]
[377812136,1754563437457,203.0,0.000176,2]
[377812139,1754563500015,443.06,0.00030136,120]
[377812140,1754563517413,150.0,0.00017975,2]
[377812141,1754563531611,654.0,0.00030137,120]
[377812145,1754563605030,320.68305834,0.00018,2]
[377812157,1754563695645,527.0,0.0001747,2]
[377812160,1754563767591,228.21,0.00013699,2]
[377812166,1754563806949,216.0,0.00018,2]
[377812230,1754563832455,-403.92188187,0.00018256,2]
[377812232,1754563832465,-203.0,0.0001827,2]
[377812233,1754563832474,-707.62,0.00018356,2]
[377812235,1754563832483,-1000.0,0.00018364,2]
[377812237,1754563832492,-253.67,0.00018367,2]
[377812239,1754563832501,-300.0,0.00018375,2]
[377812241,1754563832511,-1200.0,0.00018375,2]
[377812243,1754563832519,-16607.59191328,0.00018376,2]
[377812245,1754563832531,-4829.91264516,0.00018376,2]
[377812249,1754563832561,-300.0,0.00018376,2]
[377812257,1754563832597,-5599.25544156,0.00018376,2]
[377812260,1754563832606,-1280.94,0.00018383,2]
[377812263,1754563832615,-1047.85,0.00018419,2]
[377812265,1754563832624,-251.1,0.00018451,2]
[377812267,1754563832633,-216.12,0.00018452,2]
[377812269,1754563832642,-150.0,0.00018475,2]
[377812271,1754563832652,-166.43,0.00018486,2]
[377812273,1754563832660,-887.77,0.00018571,2]
[377812275,1754563832669,-168.14,0.00018596,2]
[377812277,1754563832679,-2047.3,0.000186,2]
[377812279,1754563832688,-1200.0,0.00018606,2]
[377812281,1754563832698,-23829.96,0.00018609,2]
[377812283,1754563832706,-203.0,0.0001861,2]
[377812285,1754563832715,-169.37,0.00018643,2]
[377812287,1754563832724,-2455.34,0.00018726,2]
[377812289,1754563832733,-150.0,0.00018731,2]
[377812291,1754563832742,-168.14,0.00018782,2]
[377812293,1754563832752,-250.0,0.00018854,2]
[377812295,1754563832761,-236.09281835,0.00018864,2]
[377812297,1754563832770,-166.62,0.00018867,2]
[377812299,1754563832780,-1000.0,0.00018907,2]
[377812301,1754563832789,-200.0,0.00018907,2]
[377812303,1754563832798,-203.0,0.0001895,2]
[377812304,1754563832807,-150.0,0.00018974,2]
[377812306,1754563832816,-240.76,0.00019048,2]
[377812308,1754563832825,-600.0,0.00019105,2]
[377812310,1754563832834,-200.0,0.00019105,2]
[377812312,1754563832843,-500.0,0.00019105,2]
[377812314,1754563832852,-500.0,0.00019105,2]
[377812316,1754563832862,-500.0,0.00019105,2]
[377812318,1754563832871,-500.0,0.00019105,2]
[377812320,1754563832880,-500.0,0.00019105,2]
[377812322,1754563832889,-500.0,0.00019105,2]
[377812324,1754563832898,-500.0,0.00019105,2]
[377812326,1754563832908,-500.0,0.00019105,2]
[377812328,1754563832917,-639.47087402,0.00019105,2]
[377812330,1754563832926,-2751.0,0.00019172,2]
[377812331,1754563832936,-151.0,0.00019178,2]
[377812332,1754563832946,-219.3011451,0.00019182,2]
[377812333,1754563832955,-600.0,0.00019182,2]
[377812334,1754563832965,-416.03518578,0.00019182,2]
[377812335,1754563832974,-500.0,0.00019182,2]
[377812336,1754563832984,-200.0,0.00019182,2]
[377812337,1754563832993,-160.0,0.00019182,2]
[377812338,1754563833002,-500.0,0.00019182,2]
[377812339,1754563833012,-300.0,0.00019182,2]
[377812340,1754563833021,-500.0,0.00019182,2]
[377812341,1754563833031,-500.0,0.00019182,2]
[377812342,1754563833041,-317.76167784,0.00019182,2]
[377812343,1754563833050,-500.0,0.00019182,2]
[377812344,1754563833059,-500.0,0.00019182,2]
[377812345,1754563833069,-500.0,0.00019182,2]
[377812346,1754563833079,-500.0,0.00019182,2]
[377812347,1754563833089,-500.0,0.00019182,2]
[377812348,1754563833099,-500.0,0.00019182,2]
[377812349,1754563833108,-500.0,0.00019182,2]
[377812350,1754563833119,-277.35679052,0.00019182,2]
[377812351,1754563833129,-151.0,0.00019182,2]
[377812353,1754563833139,-250.0,0.00019182,2]
[377812355,1754563833149,-250.0,0.00019182,2]
[377812356,1754563833159,-250.0,0.00019182,2]
[377812358,1754563833169,-250.0,0.00019182,2]
[377812361,1754563833179,-154.8624278,0.00019182,2]
[377812362,1754563833189,-326.73867833,0.00019182,2]
[377812364,1754563833199,-600.0,0.00019183,2]
[377812366,1754563833209,-600.0,0.00019183,2]
[377812368,1754563833218,-600.0,0.00019183,2]
[377812370,1754563833227,-449.14,0.00019183,2]
[377812372,1754563833237,-175.0,0.00019219,7]
[377812374,1754563833247,-253.67,0.00019285,2]
[377812376,1754563833256,-203.0,0.0001929,2]
[377812378,1754563833266,-150.0,0.00019473,4]
[377812380,1754563833275,-169.37,0.00019575,2]
[377812382,1754563833285,-1100.0,0.000196,7]
[377812384,1754563833294,-211.58213282,0.00019607,2]
[377812386,1754563833304,-160.0,0.00019607,2]
[377812388,1754563833313,-457.55740054,0.00019607,2]
[377812389,1754563833323,-203.0,0.0001962,2]
[377812391,1754563833333,-1193.68211082,0.00019688,2]
[377812393,1754563833343,-3580.95,0.00019689,2]
[377812395,1754563833353,-1193.65,0.0001969,2]
[377812397,1754563833362,-2387.3,0.00019691,2]
[377812399,1754563833371,-2300.0,0.000197,7]
[377812401,1754563833381,-297.03,0.00019703,2]
[377812403,1754563833390,-156.587,0.00019726,2]
[377812405,1754563833399,-3500.0,0.000198,7]
[377812407,1754563833410,-1000.0,0.00019888,2]
[377812409,1754563833420,-2500.0,0.00019888,2]
[377812411,1754563833430,-5826.633324,0.00019888,2]
[377812413,1754563833440,-374.83119541,0.00019888,2]
[377812415,1754563833450,-164.84004579,0.00019888,2]
[377812417,1754563833461,-5000.0,0.00019889,2]
[377812419,1754563833471,-178.46924823,0.0001989,2]
[377812421,1754563833481,-1197.2592,0.0001989,2]
[377812423,1754563833491,-1000.0,0.0001989,2]
[377812425,1754563833500,-2119.2315,0.0001989,2]
[377812427,1754563833510,-3154.4977,0.00019891,2]
[377812429,1754563833520,-4700.0,0.000199,7]
[377812431,1754563833532,-211.58213282,0.000199,7]
[377812433,1754563833542,-1940.0,0.00019943,2]
[377812435,1754563833551,-203.0,0.0001996,2]
[377812437,1754563833561,-500.0,0.00019973,2]
[377812439,1754563833570,-500.0,0.00019973,2]
[377812441,1754563833580,-500.0,0.00019973,2]
[377812443,1754563833589,-501.71643178,0.00019973,2]
[377812445,1754563833599,-500.0,0.00019973,2]
[377812447,1754563833608,-150.0,0.00019973,4]
[377812449,1754563833617,-500.0,0.00019973,2]
[377812451,1754563833627,-503.36531158,0.00019973,2]
[377812453,1754563833637,-282.47333697,0.00019973,2]
[377812455,1754563833646,-507.96825317,0.00019973,2]
[377812457,1754563833655,-161.71385581,0.00019973,2]
[377812459,1754563833665,-500.0,0.00019973,2]
[377812461,1754563833674,-500.0,0.00019973,2]
[377812463,1754563833684,-429.97770965,0.00019973,2]
[377812465,1754563833696,-162.81733772,0.00019973,2]
[377812466,1754563833705,-502.64821318,0.00019973,2]
[377812468,1754563833714,-500.0,0.00019973,2]
[377812470,1754563833724,-584.1908461,0.00019973,2]
[377812472,1754563833734,-503.94207824,0.00019973,2]
[377812474,1754563833743,-500.0,0.00019973,2]
[377812477,1754563833754,-500.0,0.00019973,2]
[377812478,1754563833763,-500.0,0.00019973,2]
[377812480,1754563833773,-500.0,0.00019973,2]
[377812482,1754563833783,-500.0,0.00019973,2]
[377812484,1754563833793,-1324.35,0.00019978,2]
[377812486,1754563833803,-5826.63332398,0.00019979,2]
[377812488,1754563833812,-304.08937813,0.0001998,2]
[377812490,1754563833822,-500.0,0.00019986,2]
[377812492,1754563833831,-500.0,0.00019986,2]
[377812494,1754563833841,-400.0,0.00019987,2]
[377812496,1754563833851,-400.0,0.00019987,2]
[377812498,1754563833862,-400.0,0.00019987,2]
[377812500,1754563833872,-521.2164979,0.00019987,2]
[377812503,1754563833882,-400.0,0.00019987,2]
[377812504,1754563833892,-526.55814867,0.00019987,2]
[377812506,1754563833901,-1199.29,0.00019987,2]
[377812509,1754563833911,-165.84838742,0.00019987,2]
[377812510,1754563833921,-400.0,0.00019987,2]
[377812512,1754563833931,-400.0,0.00019987,2]
[377812514,1754563833944,-400.0,0.00019987,2]
[377812516,1754563833954,-400.0,0.00019987,2]
[377812518,1754563833964,-400.0,0.00019987,2]
[377812520,1754563833974,-3191.56,0.00019987,2]
[377812522,1754563833984,-400.0,0.00019987,2]
[377812524,1754563833994,-400.0,0.00019987,2]
[377812526,1754563834003,-400.0,0.00019987,2]
[377812528,1754563834015,-2595.99,0.00019987,2]
[377812530,1754563834024,-400.0,0.00019987,2]
[377812532,1754563834034,-1556.75,0.00019987,2]
[377812534,1754563834043,-879.2,0.00019987,2]
[377812536,1754563834053,-400.0,0.00019987,2]
[377812538,1754563834063,-1610.99,0.00019987,2]
[377812540,1754563834073,-400.0,0.00019987,2]
[377812542,1754563834083,-400.0,0.00019987,2]
[377812544,1754563834092,-1637.1,0.00019987,2]
[377812546,1754563834102,-2829.85,0.00019987,2]
[377812548,1754563834111,-167.0253758,0.00019987,2]
[377812550,1754563834123,-400.0,0.00019987,2]
[377812552,1754563834134,-2154.5,0.00019987,2]
[377812554,1754563834143,-400.0,0.00019987,2]
[377812556,1754563834154,-2836.3459114,0.00019987,2]
[377812561,1754563834198,-1984.8940886,0.00019987,2]
[377812563,1754563834207,-138.1059114,0.00019987,2]
[377812565,1754563834219,-261.8940886,0.00019987,2]
[377812567,1754563834228,-400.0,0.00019987,2]
[377812569,1754563834238,-1168.88,0.00019987,2]
[377812571,1754563834247,-2522.72,0.00019987,2]
[377812573,1754563834256,-1291.4,0.00019987,2]
[377812575,1754563834265,-400.0,0.00019987,2]
[377812577,1754563834275,-1579.12,0.00019987,2]
[377812579,1754563834285,-1139.84,0.00019987,2]
[377812581,1754563834294,-91.55053177,0.00019987,2]
[377812583,1754563834306,-1012.83946823,0.00019987,2]
[377812585,1754563834315,-400.0,0.00019987,2]
[377812587,1754563834325,-1889.34,0.00019987,2]
[377812589,1754563834334,-686.67,0.00019987,2]
[377812590,1754563834344,-400.0,0.00019987,2]
[377812592,1754563834354,-425.33524602,0.00019988,5]
[377812597,1754563834390,-777.24024575,0.00019988,5]
[377812599,1754563834400,-1202.57549177,0.00019988,5]
[377812601,1754563834411,-400.0,0.00019988,2]
[377812602,1754563834421,-400.0,0.00019988,2]
[377812604,1754563834431,-400.0,0.00019988,2]
[377812606,1754563834446,-400.0,0.00019988,2]
[377812608,1754563834456,-400.0,0.00019988,2]
[377812610,1754563834466,-400.0,0.00019988,2]
[377812612,1754563834475,-400.0,0.00019988,2]
[377812614,1754563834484,-400.0,0.00019988,2]
[377812616,1754563834494,-400.0,0.00019988,2]
[377812618,1754563834503,-400.0,0.00019988,2]
[377812620,1754563834513,-634.60359004,0.00019988,2]
[377812622,1754563834525,-158.98640996,0.00019988,2]
[377812624,1754563834534,-400.0,0.00019988,2]
[377812626,1754563834544,-1177.43,0.00019988,2]
[377812628,1754563834554,-400.0,0.00019988,2]
[377812630,1754563834563,-400.0,0.00019988,2]
[377812632,1754563834573,-400.0,0.00019988,2]
[377812634,1754563834582,-400.0,0.00019988,2]
[377812636,1754563834591,-401.09155709,0.00019988,2]
[377812638,1754563834600,-253.30203795,0.00019988,2]
[377812786,1754563837790,-280.81799407,0.00019979,2]
[377812787,1754563837847,-219.18200593,0.00019979,2]
[377812788,1754563837858,-174.43170648,0.00019979,2]
[377812789,1754563837868,-500.0,0.00019979,2]
[377812790,1754563837878,-239.24265398,0.00019979,2]
[377812791,1754563837888,-500.0,0.00019979,2]
[377812792,1754563837898,-198.63999533,0.00019979,2]
[377812793,1754563837908,-400.0,0.00019987,2]
[377812794,1754563837918,-400.0,0.00019987,2]
[377812795,1754563837928,-10.13041028,0.00019988,2]
[377812993,1754563839931,-428.06,0.00019987,2]
[377812995,1754563839942,-638.77755177,0.00019988,2]
[377812997,1754563839951,-400.0,0.00019988,2]
[377812999,1754563839961,-402.32052689,0.00019988,2]
[377813001,1754563839972,-400.0,0.00019988,2]
[377813003,1754563839982,-400.0,0.00019988,2]
[377813005,1754563839992,-400.0,0.00019988,2]
[377813007,1754563840002,-400.0,0.00019988,2]
[377813009,1754563840013,-17.93722154,0.00019988,2]
[377813012,1754563840025,-431.76410007,0.00019988,2]
[377813022,1754563840117,-1675.51867839,0.00019988,2]
[377813024,1754563840130,-400.0,0.00019988,2]
[377813026,1754563840139,-400.0,0.00019988,2]
[377813028,1754563840149,-1064.09,0.00019988,2]
[377813030,1754563840158,-402.03221198,0.00019988,2]
[377813032,1754563840167,-402.11189611,0.00019988,2]
[377813034,1754563840178,-400.0,0.00019988,2]
[377813036,1754563840188,-400.0,0.00019988,2]
[377813038,1754563840198,-401.11768773,0.00019988,2]
[377813040,1754563840207,-1315.3,0.00019988,2]
[377813042,1754563840217,-23.21290252,0.00019988,2]
[377813044,1754563840229,-376.78709748,0.00019988,2]
[377813046,1754563840239,-625.82,0.00019988,2]
[377813048,1754563840248,-400.0,0.00019988,2]
[377813050,1754563840258,-400.0,0.00019988,2]
[377813052,1754563840267,-400.0,0.00019988,2]
[377813054,1754563840277,-400.0,0.00019988,2]
[377813056,1754563840286,-1526.03277135,0.00019988,2]
[377813058,1754563840298,-250.28722865,0.00019988,2]
[377813060,1754563840307,-338.23521642,0.00019988,2]
[377813062,1754563840316,-401.83636009,0.00019988,2]
[377813064,1754563840325,-400.0,0.00019988,2]
[377813066,1754563840335,-400.0,0.00019988,2]
[377813068,1754563840345,-400.0,0.00019988,2]
[377813070,1754563840354,-623.79,0.00019988,2]
[377813072,1754563840363,-1493.33,0.00019988,2]
[377813074,1754563840372,-124.7895851,0.00019988,2]
[377813077,1754563840384,-275.2104149,0.00019988,2]
[377813079,1754563840394,-400.0,0.00019988,2]
[377813081,1754563840403,-400.0,0.00019988,2]
[377813083,1754563840412,-504.74,0.00019988,2]
[377813085,1754563840422,-400.0,0.00019988,2]
[377813087,1754563840432,-400.0,0.00019988,2]
[377813089,1754563840443,-400.0,0.00019988,2]
[377813091,1754563840452,-1065.44,0.00019988,2]
[377813093,1754563840461,-1394.22,0.00019988,2]
[377813095,1754563840471,-400.0,0.00019988,2]
[377813097,1754563840486,-400.0,0.00019988,2]
[377813099,1754563840496,-400.0,0.00019988,2]
[377813101,1754563840505,-1633.76,0.00019988,2]
[377813103,1754563840519,-400.0,0.00019988,2]
[377813105,1754563840530,-1612.58,0.00019988,2]
[377813107,1754563840539,-289.18164329,0.00019988,2]
[377813109,1754563840550,-992.68,0.00019988,2]
[377813111,1754563840559,-401.52308113,0.00019988,2]
[377813113,1754563840568,-400.0,0.00019988,2]
[377813115,1754563840578,-400.0,0.00019988,2]
[377813117,1754563840587,-400.0,0.00019988,2]
[377813119,1754563840597,-1406.57,0.00019988,2]
[377813121,1754563840606,-521.95474786,0.00019988,2]
[377813123,1754563840615,-405.8196979,0.00019988,2]
[377813125,1754563840625,-400.0,0.00019988,2]
[377813127,1754563840634,-400.0,0.00019988,2]
[377813129,1754563840644,-400.0,0.00019988,2]
[377813131,1754563840653,-400.0,0.00019988,2]
[377813132,1754563840662,-1821.32,0.00019988,2]
[377813133,1754563840672,-400.0,0.00019988,2]
[377813134,1754563840681,-400.0,0.00019988,2]
[377813135,1754563840693,-400.0,0.00019988,2]
[377813136,1754563840703,-1890.47,0.00019988,2]
[377813137,1754563840712,-418.29,0.00019988,2]
[377813138,1754563840721,-400.0,0.00019988,2]
[377813139,1754563840731,-400.0,0.00019988,2]
[377813140,1754563840740,-400.0,0.00019988,2]
[377813141,1754563840750,-400.0,0.00019988,2]
[377813142,1754563840760,-2560.3,0.00019988,2]
[377813143,1754563840770,-400.0,0.00019988,2]
[377813144,1754563840779,-400.0,0.00019988,2]
[377813145,1754563840788,-1185.92715504,0.00019988,2]
[377813147,1754563840800,-893.01284496,0.00019988,2]
[377813149,1754563840810,-400.0,0.00019988,2]
[377813151,1754563840821,-400.0,0.00019988,2]
[377813153,1754563840831,-400.0,0.00019988,2]
[377813155,1754563840840,-400.0,0.00019988,2]
[377813157,1754563840850,-400.0,0.00019988,2]
[377813159,1754563840859,-2381.55,0.00019988,2]
[377813161,1754563840869,-400.0,0.00019988,2]
[377813163,1754563840878,-656.96,0.00019988,2]
[377813165,1754563840888,-400.0,0.00019988,2]
[377813167,1754563840897,-1294.42,0.00019988,2]
[377813169,1754563840907,-1613.89,0.00019988,2]
[377813171,1754563840916,-400.0,0.00019988,2]
[377813173,1754563840926,-492.54106772,0.00019988,2]
[377813175,1754563840935,-1671.74,0.00019988,2]
[377813177,1754563840948,-1611.96,0.00019988,2]
[377813179,1754563840957,-400.0,0.00019988,2]
[377813181,1754563840967,-400.0,0.00019988,2]
[377813183,1754563840976,-452.55,0.00019988,2]
[377813185,1754563840986,-1801.55,0.00019988,2]
[377813187,1754563840996,-400.0,0.00019988,2]
[377813189,1754563841005,-400.0,0.00019988,2]
[377813191,1754563841014,-1819.72,0.00019988,2]
[377813193,1754563841024,-890.45,0.00019988,2]
[377813195,1754563841034,-261.53771112,0.00019988,2]
[377813197,1754563841043,-400.0,0.00019988,2]
[377813199,1754563841053,-400.0,0.00019988,2]
[377813201,1754563841063,-400.0,0.00019988,2]
[377813203,1754563841076,-400.0,0.00019988,2]
[377813205,1754563841086,-400.0,0.00019988,2]
[377813207,1754563841096,-400.0,0.00019988,2]
[377813209,1754563841106,-956.0,0.00019988,2]
[377813211,1754563841116,-3363.0,0.00019988,2]
[377813213,1754563841130,-809.0,0.00019988,2]
[377813215,1754563841139,-1086.25,0.00019988,2]
[377813217,1754563841149,-400.0,0.00019988,2]
[377813219,1754563841159,-500.0,0.00019988,2]
[377813221,1754563841170,-520.94166422,0.00019988,2]
[377813223,1754563841179,-2009.38,0.00019988,2]
[377813225,1754563841191,-1252.0,0.00019988,2]
[377813227,1754563841202,-1363.36,0.00019988,2]
[377813229,1754563841211,-400.0,0.00019988,2]
[377813231,1754563841221,-400.0,0.00019988,2]
[377813233,1754563841230,-400.0,0.00019988,2]
[377813235,1754563841239,-400.0,0.00019988,2]
[377813237,1754563841249,-400.0,0.00019988,2]
[377813239,1754563841259,-400.0,0.00019988,2]
[377813241,1754563841268,-580.63,0.00019988,2]
[377813243,1754563841277,-401.3474603,0.00019988,2]
[377813245,1754563841287,-1204.75,0.00019988,2]
[377813247,1754563841296,-500.0,0.00019988,2]
[377813249,1754563841306,-400.0,0.00019988,2]
[377813251,1754563841315,-500.0,0.00019988,2]
[377813253,1754563841325,-400.0,0.00019988,2]
[377813255,1754563841334,-1827.52,0.00019988,2]
[377813257,1754563841343,-2023.0,0.00019988,2]
[377813259,1754563841353,-400.0,0.00019988,2]
[377813261,1754563841363,-400.0,0.00019988,2]
[377813263,1754563841372,-400.0,0.00019988,2]
[377813265,1754563841382,-1100.87,0.00019988,2]
[377813267,1754563841391,-400.0,0.00019988,2]
[377813269,1754563841400,-699.57,0.00019988,2]
[377813271,1754563841410,-445.49622836,0.00019988,2]
[377813273,1754563841419,-1293.0,0.00019988,2]
[377813275,1754563841428,-558.46,0.00019988,2]
[377813277,1754563841438,-400.0,0.00019988,2]
[377813279,1754563841449,-400.0,0.00019988,2]
[377813281,1754563841458,-589.51,0.00019988,2]
[377813283,1754563841467,-400.0,0.00019988,2]
[377813285,1754563841477,-1333.27,0.00019988,2]
[377813287,1754563841486,-564.0,0.00019988,2]
[377813289,1754563841496,-400.0,0.00019988,2]
[377813291,1754563841505,-400.0,0.00019988,2]
[377813293,1754563841515,-1259.92,0.00019988,2]
[377813295,1754563841524,-658.4,0.00019988,2]
[377813297,1754563841533,-3389.4,0.00019988,2]
[377813299,1754563841542,-598.1,0.00019988,2]
[377813301,1754563841552,-407.83,0.00019988,2]
[377813303,1754563841561,-400.0,0.00019988,2]
[377813305,1754563841571,-554.8,0.00019988,2]
[377813307,1754563841581,-400.0,0.00019988,2]
[377813309,1754563841590,-541.76311104,0.00019988,2]
[377813311,1754563841599,-400.0,0.00019988,2]
[377813313,1754563841609,-565.42,0.00019988,2]
[377813315,1754563841618,-2145.91,0.00019988,2]
[377813317,1754563841627,-959.0,0.00019988,2]
[377813319,1754563841637,-1186.44269116,0.00019988,2]
[377813322,1754563841651,-1148.27730884,0.00019988,2]
[377813324,1754563841661,-215.41104045,0.00019988,2]
[377813326,1754563841672,-1594.19895955,0.00019988,2]
[377813328,1754563841681,-400.0,0.00019988,2]
[377813330,1754563841691,-484.92376259,0.00019988,2]
[377813332,1754563841701,-1973.55,0.00019988,2]
[377813334,1754563841711,-639.34,0.00019988,2]
[377813336,1754563841720,-510.06,0.00019988,2]
[377813338,1754563841730,-400.0,0.00019988,2]
[377813340,1754563841739,-400.0,0.00019988,2]
[377813342,1754563841749,-400.0,0.00019988,2]
[377813344,1754563841758,-400.0,0.00019988,2]
[377813346,1754563841768,-400.0,0.00019988,2]
[377813348,1754563841777,-1708.94,0.00019988,2]
[377813350,1754563841786,-4.75026322,0.00019988,2]
[377813352,1754563841798,-395.24973678,0.00019988,2]
[377813354,1754563841807,-400.0,0.00019988,2]
[377813356,1754563841817,-400.0,0.00019988,2]
[377813358,1754563841826,-1254.83125883,0.00019988,2]
[377813360,1754563841837,-517.31874117,0.00019988,2]
[377813362,1754563841847,-400.0,0.00019988,2]
[377813364,1754563841856,-1010.0,0.00019988,2]
[377813366,1754563841866,-400.0,0.00019988,2]
[377813368,1754563841875,-400.0,0.00019988,2]
[377813370,1754563841884,-1526.53,0.00019988,2]